bitfinex-derivatives/quotes_BNBF0:USTF0_20250101
["timestamp","ask_amount","ask_price","bid_price","bid_amount"]
[1735773922808,0.694,707.4,706.96,1.05593607]
[1735773923010,0.8907918,707.39,706.96,1.05593607]
[1735773923211,0.8907918,707.38,706.96,1.05593607]
[1735773923412,0.8907918,707.37,707.0,1.05593607]
[1735773923711,0.8907918,707.36,707.0,1.05593607]
[1735773923913,0.8907918,707.35,707.0,1.05593607]
[1735773924212,0.8907918,707.34,707.0,1.05593607]
[1735773924412,0.8907918,707.33,707.0,1.05593607]
[1735773924608,0.89082417,707.32,707.0,1.05593607]
[1735773924907,0.89082417,707.31,707.01,1.05593607]
[1735773925112,0.89082417,707.3,707.01,1.05593607]
[1735773925308,0.89082417,707.29,707.01,1.05593607]
[1735773925514,0.89082417,707.28,707.01,1.05593607]
[1735773925813,0.694,707.4,707.03,1.05593607]
[1735773926017,0.89085857,707.39,707.03,1.05593607]
[1735773926313,0.89085857,707.38,707.03,1.05593607]
[1735773926513,0.89085857,707.37,707.03,1.05593607]
[1735773926713,0.89085857,707.36,707.03,1.05593607]
[1735773926915,0.89085857,707.35,707.03,1.05593607]
[1735773927107,0.89085857,707.34,707.03,1.05593607]
[1735773927313,0.89091229,707.33,707.03,1.05593607]
[1735773927514,0.89091229,707.32,707.03,1.05593607]
[1735773927711,0.89091229,707.31,707.03,1.05593607]
[1735773927911,0.89091229,707.3,707.03,1.05593607]
[1735773928112,0.694,707.4,706.84,1.33888553]
[1735773928113,0.89091229,707.29,707.04,1.05593607]
[1735773928318,0.89091229,707.28,707.04,1.05593607]
[1735773928517,0.89091229,707.27,707.04,1.05593607]
[1735773928718,0.89091229,707.26,707.04,1.05593607]
[1735773928915,0.694,707.4,706.9,1.05593607]
[1735773929115,0.8909315,707.39,706.9,1.05593607]
[1735773929319,0.8909315,707.38,706.9,1.05593607]
[1735773929511,0.8909315,707.37,706.9,1.05593607]
[1735773929715,0.8909315,707.36,706.9,1.05593607]
[1735773929911,0.8909315,707.35,706.9,1.05593607]
[1735773930117,0.8909315,707.34,706.9,1.05593607]
[1735773930320,0.89095441,707.33,706.92,1.05593607]
[1735773930513,0.89095441,707.32,706.92,1.05593607]
[1735773930711,0.89095441,707.31,706.92,1.05593607]
[1735773930913,0.89095441,707.3,706.92,1.05593607]
[1735773931119,0.89095441,707.29,706.92,1.05593607]
[1735773931311,0.89095441,707.28,706.92,1.05593607]
[1735773931516,0.89095441,707.27,706.9,1.05593607]
[1735773931715,0.89095441,707.26,706.9,1.05593607]
[1735773931916,0.89095441,707.25,706.9,1.05593607]
[1735773932118,1.4765001,707.71,706.9,1.05593607]
[1735773932419,0.694,707.24,706.9,1.05593607]
[1735773933521,0.694,707.24,706.92,1.05593607]
[1735773934920,0.89107094,707.23,706.92,1.05593607]
[1735773935113,0.694,707.24,706.92,1.05593607]
[1735773935716,0.89109144,707.23,706.92,1.05593607]
[1735773936019,0.8910617,707.22,706.91,1.05593607]
[1735773936321,0.89106551,707.21,706.91,1.05593607]
[1735773936621,0.694,707.24,706.91,1.05593607]
[1735773936817,0.694,707.24,706.84,0.28294946]
[1735773936818,0.89110896,707.23,706.88,1.05593607]
[1735773937022,0.89110896,707.22,706.88,1.05593607]
[1735773937222,0.89110896,707.21,706.88,1.05593607]
[1735773937522,0.694,707.24,706.88,1.05593607]
[1735773937722,0.89111698,707.23,706.88,1.05593607]
[1735773938024,0.89111698,707.22,706.89,1.05593607]
[1735773938219,0.89111698,707.21,706.89,1.05593607]
[1735773938420,0.694,707.24,706.89,1.05593607]
[1735773938619,0.89114836,707.23,706.89,1.05593607]
[1735773938820,0.694,707.24,706.89,1.05593607]
[1735773938821,0.89114836,707.22,706.89,1.05593607]
[1735773939016,0.89114836,707.21,706.89,1.05593607]
[1735773939221,0.89114836,707.2,707.02,1.05593607]
[1735773939421,0.694,707.24,707.02,1.05593607]
[1735773939619,0.89120596,707.23,707.02,1.05593607]
[1735773939822,0.89120596,707.22,707.02,1.05593607]
[1735773940016,0.89120596,707.21,707.02,1.05593607]
[1735773940217,0.89120596,707.2,707.02,1.05593607]
[1735773940421,0.694,707.24,707.02,1.05593607]
[1735773940616,0.8912488,707.23,707.02,1.05593607]
[1735773940815,0.694,707.24,707.02,1.05593607]
[1735773940816,0.8912488,707.22,707.02,1.05593607]
[1735773941016,0.694,707.24,707.02,1.05593607]
[1735773941017,0.8912488,707.21,707.02,1.05593607]
[1735773941223,0.8912488,707.21,706.84,0.28294946]
[1735773941224,0.8912488,707.2,706.99,1.05593607]
[1735773941425,0.694,707.24,706.99,1.05593607]
[1735773941623,0.89127955,707.23,706.99,1.05593607]
[1735773941817,0.89127955,707.22,706.99,1.05593607]
[1735773942017,0.89127955,707.21,706.99,1.05593607]
[1735773942217,0.89127955,707.2,706.99,1.05593607]
[1735773942420,0.89127955,707.2,706.84,0.28294946]
[1735773942421,0.694,707.24,706.98,1.05593607]
[1735773942617,0.89136691,707.23,706.98,1.05593607]
[1735773942819,0.89136691,707.22,706.98,1.05593607]
[1735773943020,0.89136691,707.21,706.98,1.05593607]
[1735773943318,0.89135144,707.2,706.98,1.05593607]
[1735773943522,0.89135144,707.19,706.98,1.05593607]
[1735773943722,0.694,707.24,706.98,1.05593607]
[1735773943919,0.89142511,707.23,706.98,1.05593607]
[1735773944122,0.89142511,707.22,706.98,1.05593607]
[1735773944425,0.89142511,707.21,706.98,1.05593607]
[1735773944619,0.694,707.24,706.98,1.05593607]
[1735773944620,0.89142511,707.2,706.98,1.05593607]
[1735773944825,0.89146865,707.19,706.98,1.05593607]
[1735773945025,0.694,707.24,706.98,1.05593607]
[1735773945226,0.89146958,707.23,706.98,1.05593607]
[1735773945425,0.89146958,707.22,706.98,1.05593607]
[1735773945618,0.89146958,707.21,706.98,1.05593607]
[1735773945820,0.89146958,707.2,706.98,1.05593607]
[1735773946022,0.89146958,707.19,706.98,1.05593607]
[1735773946220,0.694,707.24,706.96,1.05593607]
[1735773946424,0.89150968,707.23,706.96,1.05593607]
[1735773946622,0.89150968,707.22,706.96,1.05593607]
[1735773946823,0.89150968,707.21,706.96,1.05593607]
[1735773947025,0.89150968,707.2,706.96,1.05593607]
[1735773947327,0.694,707.24,706.91,1.05593607]
[1735773947328,0.89150968,707.19,706.91,1.05593607]
[1735773947528,0.89150968,707.18,706.91,1.05593607]
[1735773947721,0.89150968,707.17,706.91,1.05593607]
[1735773947921,0.694,707.24,706.91,1.05593607]
[1735773948121,0.89163941,707.23,706.91,1.05593607]
[1735773948323,0.89163941,707.22,706.91,1.05593607]
[1735773948523,0.89163941,707.21,706.9,1.05593607]
[1735773948725,0.89163941,707.2,706.9,1.05593607]
[1735773948925,0.89163941,707.19,706.9,1.05593607]
[1735773949120,0.89163941,707.18,706.9,1.05593607]
[1735773949320,0.89163941,707.17,706.9,1.05593607]
[1735773949628,0.89177757,707.16,706.9,1.05593607]
[1735773949827,0.694,707.24,706.89,1.05593607]
[1735773950020,0.8917688,707.23,706.89,1.05593607]
[1735773950222,0.8917688,707.22,706.89,1.05593607]
[1735773950425,0.8917688,707.21,706.89,1.05593607]
[1735773950627,0.8917688,707.2,706.89,1.05593607]
[1735773950926,1.4765001,707.71,706.9,1.05593607]
[1735773950927,0.8917688,707.19,706.9,1.05593607]
[1735773951127,0.8917688,707.18,706.9,1.05593607]
[1735773951327,0.8917688,707.17,706.9,1.05593607]
[1735773951524,0.8917688,707.16,706.9,1.05593607]
[1735773951726,0.8917688,707.15,706.9,1.05593607]
[1735773951926,0.89198069,707.14,706.9,1.05593607]
[1735773952227,0.694,707.17,706.9,1.05593607]
[1735773952528,0.89214362,707.16,706.9,1.05593607]
[1735773952721,0.89214362,707.15,706.9,1.05593607]
[1735773952922,0.89214362,707.14,706.9,1.05593607]
[1735773953122,0.694,707.17,706.9,1.05593607]
[1735773953324,0.8921274,707.16,706.9,1.05593607]
[1735773953525,0.8921274,707.15,706.9,1.05593607]
[1735773953720,0.8921274,707.14,706.9,1.05593607]
[1735773953923,0.694,707.17,706.9,1.05593607]
[1735773954227,0.89215241,707.16,706.9,1.05593607]
[1735773954424,0.89215241,707.15,706.9,1.05593607]
[1735773954622,0.694,707.17,706.9,1.05593607]
[1735773954823,0.89217446,707.16,706.9,1.05593607]
[1735773955023,0.694,707.17,706.9,1.05593607]
[1735773955024,0.89217038,707.15,706.9,1.05593607]
[1735773955225,0.89217038,707.14,706.92,1.05593607]
[1735773955425,0.694,707.17,706.92,1.05593607]
[1735773956526,0.694,707.17,706.96,1.05593607]
[1735773957632,0.694,707.17,706.91,1.05593607]
[1735773958634,0.694,707.17,706.93,1.05593607]
[1735773959332,0.694,707.17,706.94,1.05593607]
[1735773960936,0.694,707.17,706.96,1.05593607]
[1735773962430,1.4765001,707.71,706.96,1.05593607]
[1735773962635,0.89241954,707.7,706.96,1.05593607]
[1735773962937,0.89241954,707.69,706.96,1.05593607]
[1735773963136,0.89241954,707.68,706.96,1.05593607]
[1735773963338,0.89241954,707.67,706.96,1.05593607]
[1735773963540,1.58541954,707.66,706.96,1.05593607]
[1735773963740,0.89241954,707.65,706.96,1.05593607]
[1735773963934,0.89241954,707.64,706.96,1.05593607]
[1735773964134,0.89241954,707.63,706.96,1.05593607]
[1735773964439,0.89241954,707.62,706.96,1.05593607]
[1735773964638,0.89241954,707.61,706.96,1.05593607]
[1735773964837,0.89241954,707.6,706.96,1.05593607]
[1735773965038,0.89241954,707.59,706.96,1.05593607]
[1735773965334,0.89241954,707.58,706.96,1.05593607]
[1735773965540,0.89241954,707.57,706.96,1.05593607]
[1735773965738,0.89241954,707.56,706.96,1.05593607]
[1735773965934,0.89241954,707.55,706.96,1.05593607]
[1735773966137,0.89241954,707.54,706.98,1.05593607]
[1735773966337,0.89241954,707.53,706.98,1.05593607]
[1735773966534,0.89241954,707.52,706.98,1.05593607]
[1735773966734,0.693,707.66,706.98,1.05593607]
[1735773966939,0.89230374,707.65,706.98,1.05593607]
[1735773967136,0.89230374,707.64,706.98,1.05593607]
[1735773967336,0.89230374,707.63,706.98,1.05593607]
[1735773967537,0.89230374,707.62,707.05,1.05593607]
[1735773967740,0.89230374,707.61,707.05,1.05593607]
[1735773967940,0.89230374,707.6,707.05,1.05593607]
[1735773968139,0.89230374,707.59,707.05,1.05593607]
[1735773968344,0.89230374,707.58,707.05,1.05593607]
[1735773968544,0.89230374,707.57,707.05,1.05593607]
[1735773968840,0.89230374,707.56,707.04,1.05593607]
[1735773969042,0.89230374,707.55,707.04,1.05593607]
[1735773969242,0.89230374,707.54,707.04,1.05593607]
[1735773969440,0.89230374,707.53,707.04,1.05593607]
[1735773969641,0.89230374,707.52,707.04,1.05593607]
[1735773969839,0.693,707.66,707.05,1.05593607]
[1735773970143,0.8922946,707.65,707.05,1.05593607]
[1735773970346,0.8923051,707.64,707.05,1.05593607]
[1735773970538,0.8923051,707.63,707.05,1.05593607]
[1735773970744,0.8923051,707.62,707.06,1.05593607]
[1735773970943,0.8923051,707.61,707.06,1.05593607]
[1735773971144,0.8923051,707.6,707.06,1.05593607]
[1735773971345,0.8923051,707.59,707.06,1.05593607]
[1735773971543,0.8923051,707.58,707.06,1.05593607]
[1735773971741,0.8923051,707.57,707.06,1.05593607]
[1735773972047,0.8923051,707.56,707.05,1.05593607]
[1735773972347,0.8923051,707.55,707.05,1.05593607]
[1735773972647,0.8923051,707.54,707.05,1.05593607]
[1735773972846,0.8923051,707.53,707.05,1.05593607]
[1735773973047,0.89229654,707.52,707.05,1.05593607]
[1735773973348,0.89229654,707.51,707.01,1.05593607]
[1735773973541,0.89229654,707.5,707.01,1.05593607]
[1735773973745,0.89229654,707.49,707.01,1.05593607]
[1735773973945,0.89229654,707.48,707.01,1.05593607]
[1735773974145,0.89229654,707.47,707.01,1.05593607]
[1735773974348,0.89229654,707.46,707.03,1.05593607]
[1735773974546,0.693,707.66,707.03,1.05593607]
[1735773974547,0.89229654,707.45,707.03,1.05593607]
[1735773974749,0.89229654,707.44,707.03,1.05593607]
[1735773974942,0.89229654,707.43,707.03,1.05593607]
[1735773975146,0.89229654,707.42,706.98,1.05593607]
[1735773975344,0.89229654,707.41,706.98,1.05593607]
[1735773975549,0.89229654,707.4,706.98,1.05593607]
[1735773975848,0.89229654,707.39,706.98,1.05593607]
[1735773976051,0.89229654,707.38,706.98,1.05593607]
[1735773976249,0.89229654,707.37,706.98,1.05593607]
[1735773976449,0.89229654,707.36,706.98,1.05593607]
[1735773976651,0.89229654,707.35,706.98,1.05593607]
[1735773976846,0.89229654,707.34,706.98,1.05593607]
[1735773977051,0.89229654,707.33,706.98,1.05593607]
[1735773977251,0.89229654,707.32,706.98,1.05593607]
[1735773977446,0.89229654,707.31,706.98,1.05593607]
[1735773977645,0.89229654,707.3,706.98,1.05593607]
[1735773977849,0.89229654,707.29,706.98,1.05593607]
[1735773978050,0.89229654,707.28,706.98,1.05593607]
[1735773978350,0.89229654,707.27,706.98,1.05593607]
[1735773978546,0.89229654,707.26,706.98,1.05593607]
[1735773978746,0.89229654,707.25,706.98,1.05593607]
[1735773979056,0.89229654,707.24,706.98,1.05593607]
[1735773979245,0.89254106,707.23,706.98,1.05593607]
[1735773979446,0.89254106,707.22,706.98,1.05593607]
[1735773979650,0.693,707.66,706.98,1.05593607]
[1735773979851,0.89269764,707.65,706.98,1.05593607]
[1735773980051,0.89269764,707.64,706.98,1.05593607]
[1735773980352,0.89269764,707.63,706.98,1.05593607]
[1735773980547,0.89269764,707.62,706.98,1.05593607]
[1735773980751,0.89269764,707.61,706.98,1.05593607]
[1735773980952,0.89269764,707.6,706.98,1.05593607]
[1735773981148,0.89269764,707.59,706.98,1.05593607]
[1735773981352,0.89269764,707.58,706.98,1.05593607]
[1735773981653,0.89272173,707.57,706.98,1.05593607]
[1735773981854,0.89272173,707.56,706.98,1.05593607]
[1735773982055,0.89272173,707.55,706.98,1.05593607]
[1735773982256,0.693,707.66,706.97,1.05593607]
[1735773982448,0.89272673,707.65,706.97,1.05593607]
[1735773982652,0.89272673,707.64,706.97,1.05593607]
[1735773982854,0.89272673,707.63,706.97,1.05593607]
[1735773983055,0.89272673,707.62,706.97,1.05593607]
[1735773983249,0.89272673,707.61,706.97,1.05593607]
[1735773983449,0.89272673,707.6,706.93,1.05593607]
[1735773983755,0.89272673,707.59,706.93,1.05593607]
[1735773983956,0.89272673,707.58,706.93,1.05593607]
[1735773984156,0.89272673,707.57,706.93,1.05593607]
[1735773984457,0.89272673,707.56,706.93,1.05593607]
[1735773984657,0.89272673,707.55,706.9,1.05593607]
[1735773984955,0.89272673,707.54,706.9,1.05593607]
[1735773985158,0.89272673,707.53,706.9,1.05593607]
[1735773985357,0.89264829,707.52,706.9,1.05593607]
[1735773985652,0.89264829,707.51,706.9,1.05593607]
[1735773985956,0.89264829,707.5,706.9,1.05593607]
[1735773986156,0.89264829,707.49,706.9,1.05593607]
[1735773986352,0.89264829,707.48,706.9,1.05593607]
[1735773986557,0.89264829,707.47,706.9,1.05593607]
[1735773986757,0.89264829,707.46,706.9,1.05593607]
[1735773986958,0.89264829,707.45,706.9,1.05593607]
[1735773987258,0.693,707.66,706.89,1.05593607]
[1735773987259,0.89264829,707.44,706.89,1.05593607]
[1735773987458,0.89264829,707.43,706.89,1.05593607]
[1735773987656,0.89264829,707.42,706.89,1.05593607]
[1735773987856,0.89264829,707.41,706.89,1.05593607]
[1735773988157,0.89264829,707.4,706.89,1.05593607]
[1735773988352,0.89264829,707.39,706.89,1.05593607]
[1735773988556,0.89264829,707.38,706.89,1.05593607]
[1735773988753,0.693,707.66,706.89,1.05593607]
[1735773988754,0.89264829,707.37,706.89,1.05593607]
[1735773988953,0.89264829,707.36,706.89,1.05593607]
[1735773989257,0.89264829,707.35,706.89,1.05593607]
[1735773989451,0.89264829,707.34,706.89,1.05593607]
[1735773989651,0.89264829,707.33,706.89,1.05593607]
[1735773989857,0.89264829,707.32,706.89,1.05593607]
[1735773990059,0.89264829,707.31,706.89,1.05593607]
[1735773990357,0.89264829,707.3,706.89,1.05593607]
[1735773990557,0.89264829,707.29,706.89,1.05593607]
[1735773990854,0.89255288,707.28,706.89,1.05593607]
[1735773991057,0.89255288,707.27,706.89,1.05593607]
[1735773991254,0.89255288,707.26,706.88,1.05593607]
[1735773991455,0.89255288,707.25,706.88,1.05593607]
[1735773991651,0.89254525,707.24,706.88,1.05593607]
[1735773991849,0.89254525,707.23,706.88,1.05593607]
[1735773992052,0.89254525,707.22,706.88,1.05593607]
[1735773992359,0.89254525,707.22,706.84,0.28294946]
[1735773992360,0.89254525,707.21,706.97,1.05593607]
[1735773992559,0.89254525,707.2,706.97,1.05593607]
[1735773992752,1.58654525,707.19,706.97,1.05593607]
[1735773992953,0.89254525,707.18,706.97,1.05593607]
[1735773993155,0.89254525,707.17,706.97,1.05593607]
[1735773993454,0.89254525,707.16,706.97,1.05593607]
[1735773993659,0.89254525,707.15,706.97,1.05593607]
[1735773993959,0.89254525,707.14,706.97,1.05593607]
[1735773994158,0.694,707.19,706.84,0.28294946]
[1735773994159,0.89254525,707.13,706.95,1.05593607]
[1735773994360,0.694,707.19,706.95,1.05593607]
[1735773994552,0.89259869,707.18,706.95,1.05593607]
[1735773994756,0.89259869,707.17,706.95,1.05593607]
[1735773994955,0.89259869,707.16,706.95,1.05593607]
[1735773995159,0.89259869,707.15,706.96,1.05593607]
[1735773995460,0.89259869,707.14,706.96,1.05593607]
[1735773995662,0.89259869,707.13,706.96,1.05593607]
[1735773995865,0.694,707.19,706.96,1.05593607]
[1735773996064,0.89260819,707.18,706.96,1.05593607]
[1735773996359,0.89260819,707.17,706.96,1.05593607]
[1735773996563,0.89260819,707.16,706.96,1.05593607]
[1735773996764,0.89260819,707.15,706.96,1.05593607]
[1735773996965,0.89260819,707.14,706.96,1.05593607]
[1735773997159,0.694,707.19,706.96,1.05593607]
[1735773997360,0.89260899,707.18,706.96,1.05593607]
[1735773997560,0.89260899,707.17,706.96,1.05593607]
[1735773997765,0.89260899,707.16,706.96,1.05593607]
[1735773997965,0.89260899,707.15,706.84,0.28294946]
[1735773998263,0.694,707.19,706.84,0.28294946]
[1735773998464,0.89259926,707.18,706.84,0.28294946]
[1735773998660,0.89259926,707.17,706.84,0.28294946]
[1735773998865,0.89259926,707.16,706.84,0.28294946]
[1735773999165,0.89259926,707.15,706.84,0.28294946]
[1735773999364,0.694,707.19,706.84,0.28294946]
[1735773999365,0.89259926,707.14,706.84,0.28294946]
[1735773999667,0.694,707.19,706.84,0.28294946]
[1735773999861,0.89272272,707.18,706.84,0.28294946]
[1735774000060,0.89272642,707.17,706.84,0.28294946]
[1735774000260,0.89272642,707.16,706.84,0.28294946]
[1735774000461,0.89272642,707.15,706.84,0.28294946]
[1735774000661,0.694,707.19,706.84,0.28294946]
[1735774000866,0.89271873,707.18,706.84,0.28294946]
[1735774001066,0.694,707.19,706.84,0.28294946]
[1735774001067,0.89271873,707.17,706.84,0.28294946]
[1735774001259,0.89271873,707.16,706.84,0.28294946]
[1735774001462,0.89271873,707.15,706.84,0.28294946]
[1735774001661,0.694,707.19,706.84,0.28294946]
[1735774001863,0.89272121,707.18,706.84,0.28294946]
[1735774002062,0.89272121,707.17,706.84,0.28294946]
[1735774002263,0.89272121,707.16,706.84,0.28294946]
[1735774002467,0.89272121,707.15,706.84,0.28294946]
[1735774002667,0.694,707.19,706.84,0.28294946]
[1735774002861,0.89272114,707.18,706.84,0.28294946]
[1735774003063,0.89272114,707.17,706.84,0.28294946]
[1735774003265,0.89272114,707.16,706.84,0.28294946]
[1735774003464,0.694,707.19,706.84,0.28294946]
[1735774003667,0.89272368,707.18,706.84,0.28294946]
[1735774003967,0.89272368,707.17,706.84,0.28294946]
[1735774004166,0.694,707.19,706.84,0.28294946]
[1735774004167,0.89272368,707.16,706.84,0.28294946]
[1735774004368,0.694,707.19,706.84,0.28294946]
[1735774004568,0.89275913,707.18,706.84,0.28294946]
[1735774004761,0.694,707.19,706.84,0.28294946]
[1735774004966,0.89272704,707.18,706.84,0.28294946]
[1735774005165,0.694,707.19,706.84,0.28294946]
[1735774007867,0.694,707.19,707.02,1.06017598]
[1735774010470,0.694,707.19,706.99,1.06017598]
[1735774011476,0.694,707.19,706.84,0.28294946]
[1735774011477,0.694,707.19,706.98,1.06017598]
[1735774012577,0.694,707.19,706.96,1.06017598]
[1735774015779,0.694,707.19,706.97,1.06017598]
[1735774017080,0.694,707.19,707.0,1.06017598]
[1735774018483,0.694,707.19,706.84,0.28294946]
[1735774018484,0.694,707.19,707.01,1.06017598]
[1735774019680,0.694,707.19,707.03,1.06017598]
[1735774020887,1.47654709,707.9,707.03,1.06017598]
[1735774021089,0.89119984,707.89,707.01,1.06017598]
[1735774021387,0.89119984,707.88,707.01,1.06017598]
[1735774021687,1.47654709,707.9,707.01,1.06017598]
[1735774021688,0.89114502,707.87,707.01,1.06017598]
[1735774021885,0.89114502,707.86,707.01,1.06017598]
[1735774022086,1.58414502,707.85,707.0,1.06017598]
[1735774022287,0.89114502,707.84,707.0,1.06017598]
[1735774022487,0.89114502,707.83,707.0,1.06017598]
[1735774022686,0.89114502,707.82,707.0,1.06017598]
[1735774022890,0.89114502,707.81,707.0,1.06017598]
[1735774023092,0.89114502,707.8,707.0,1.06017598]
[1735774023390,0.89114502,707.79,707.0,1.06017598]
[1735774023584,0.89114502,707.78,707.01,1.06017598]
[1735774023787,0.89114502,707.77,707.01,1.06017598]
[1735774023984,0.89114502,707.76,707.01,1.06017598]
[1735774024185,0.89114502,707.75,707.01,1.06017598]
[1735774024386,0.89114502,707.74,707.01,1.06017598]
[1735774024586,0.693,707.85,706.84,0.28294946]
[1735774024587,0.693,707.85,706.99,1.06017598]
[1735774024788,0.89080499,707.84,706.99,1.06017598]
[1735774025093,0.89080615,707.83,706.99,1.06017598]
[1735774025393,0.89080615,707.82,706.99,1.06017598]
[1735774025590,0.89080615,707.81,706.99,1.06017598]
[1735774025786,0.89080615,707.8,707.02,1.06017598]
[1735774025985,0.89080615,707.79,707.02,1.06017598]
[1735774026191,0.89080615,707.78,707.02,1.06017598]
[1735774026490,0.89080615,707.77,707.02,1.06017598]
[1735774026693,0.89080615,707.76,707.02,1.06017598]
[1735774026893,0.89080615,707.75,707.05,1.06017598]
[1735774027196,0.89080615,707.74,707.05,1.06017598]
[1735774027393,0.89080615,707.73,707.05,1.06017598]
[1735774027595,0.693,707.85,707.05,1.06017598]
[1735774027795,0.89027782,707.84,707.05,1.06017598]
[1735774027996,0.89027782,707.83,707.05,1.06017598]
[1735774028295,0.89027782,707.82,707.05,1.06017598]
[1735774028494,0.89027782,707.81,707.05,1.06017598]
[1735774028688,0.89027782,707.8,707.05,1.06017598]
[1735774028889,0.89027782,707.79,707.05,1.06017598]
[1735774029093,0.89027782,707.78,707.05,1.06017598]
[1735774029289,0.693,707.85,707.05,1.06017598]
[1735774029290,0.89027782,707.77,707.05,1.06017598]
[1735774029493,0.89027782,707.76,707.05,1.06017598]
[1735774029696,0.89027782,707.75,707.05,1.06017598]
[1735774029891,0.89027782,707.74,707.05,1.06017598]
[1735774030091,0.89027782,707.73,707.05,1.06017598]
[1735774030397,0.693,707.85,707.07,1.06017598]
[1735774030398,0.89027782,707.72,707.07,1.06017598]
[1735774030600,0.693,707.85,707.07,1.06017598]
[1735774030794,0.88986682,707.84,707.07,1.06017598]
[1735774030995,0.88986682,707.83,707.07,1.06017598]
[1735774031195,0.88986682,707.82,707.07,1.06017598]
[1735774031396,0.88986682,707.81,707.07,1.06017598]
[1735774031592,0.693,707.85,707.05,1.06017598]
[1735774031593,0.88986682,707.8,707.05,1.06017598]
[1735774031792,0.88986682,707.79,707.05,1.06017598]
[1735774031991,0.88986682,707.78,707.05,1.06017598]
[1735774032192,0.88986682,707.77,707.05,1.06017598]
[1735774032499,0.88986682,707.76,707.05,1.06017598]
[1735774032699,0.88986682,707.75,707.05,1.06017598]
[1735774032900,0.88986682,707.74,707.05,1.06017598]
[1735774033102,0.88986682,707.73,707.08,1.06017598]
[1735774033298,0.88986682,707.72,707.08,1.06017598]
[1735774033492,0.88986682,707.71,707.08,1.06017598]
[1735774033693,0.88986682,707.7,707.08,1.06017598]
[1735774033999,0.88957303,707.69,707.1,1.06017598]
[1735774034206,0.88957303,707.68,707.1,1.06017598]
[1735774034500,0.88956088,707.67,707.1,1.06017598]
[1735774034699,0.88956088,707.66,707.1,1.06017598]
[1735774034900,0.88956088,707.65,707.1,1.06017598]
[1735774035200,0.88956088,707.65,706.85,0.732048]
[1735774035201,0.88956088,707.64,707.11,1.06017598]
[1735774035399,0.88956088,707.63,707.11,1.06017598]
[1735774035598,0.88956088,707.62,707.11,1.06017598]
[1735774035899,1.47594694,707.98,707.11,1.06017598]
[1735774036094,1.14969381,707.97,707.08,1.06017598]
[1735774036301,1.14969381,707.96,707.08,1.06017598]
[1735774036600,0.88953502,707.95,707.08,1.06017598]
[1735774036799,0.88953502,707.94,707.08,1.06017598]
[1735774036999,0.88949698,707.93,707.08,1.06017598]
[1735774037199,0.88949698,707.92,707.08,1.06017598]
[1735774037402,0.88949698,707.91,707.08,1.06017598]
[1735774037600,0.88949698,707.9,707.08,1.06017598]
[1735774037802,0.88949698,707.89,707.08,1.06017598]
[1735774038001,0.88949698,707.88,707.08,1.06017598]
[1735774038201,0.88949698,707.87,707.08,1.06017598]
[1735774038403,0.88949698,707.86,707.08,1.06017598]
[1735774038600,0.88949698,707.85,707.08,1.06017598]
[1735774038900,0.88949698,707.84,707.08,1.06017598]
[1735774039100,0.88949698,707.84,706.84,0.28294946]
[1735774039101,0.88949698,707.83,707.04,1.06017598]
[1735774039300,0.88949698,707.82,707.04,1.06017598]
[1735774039497,0.88949698,707.81,707.04,1.06017598]
[1735774039697,0.88949698,707.8,707.04,1.06017598]
[1735774039900,1.4759,707.96,707.04,1.06017598]
[1735774040100,0.88948574,707.95,707.04,1.06017598]
[1735774040303,0.88948574,707.94,706.98,1.06017598]
[1735774040502,0.88948574,707.93,706.98,1.06017598]
[1735774040702,0.88948574,707.92,706.98,1.06017598]
[1735774041002,0.88948574,707.91,706.98,1.06017598]
[1735774041204,0.88948574,707.9,706.98,1.06017598]
[1735774041398,0.88948574,707.89,706.98,1.06017598]
[1735774041601,1.4759,707.96,706.84,0.28294946]
[1735774041602,0.88948574,707.88,706.97,1.06017598]
[1735774041803,0.88948574,707.87,706.97,1.06017598]
[1735774041997,0.88948574,707.86,706.97,1.06017598]
[1735774042198,0.88948574,707.85,706.97,1.06017598]
[1735774042399,0.88948574,707.84,706.97,1.06017598]
[1735774042599,0.88948574,707.83,706.97,1.06017598]
[1735774042800,0.88948574,707.82,706.97,1.06017598]
[1735774043000,1.4759,707.96,706.97,1.06017598]
[1735774043205,0.88951729,707.95,706.97,1.06017598]
[1735774043406,0.88951729,707.94,706.97,1.06017598]
[1735774043706,0.88952812,707.93,706.97,1.06017598]
[1735774043907,0.88952812,707.92,706.98,1.06017598]
[1735774044107,0.88952812,707.91,706.98,1.06017598]
[1735774044308,0.88952812,707.9,706.98,1.06017598]
[1735774044500,0.88952812,707.89,706.98,1.06017598]
[1735774044706,0.88952812,707.88,707.06,1.06017598]
[1735774044902,1.4759,707.96,707.06,1.06017598]
[1735774044903,0.88952812,707.87,707.06,1.06017598]
[1735774045105,0.88952812,707.86,707.06,1.06017598]
[1735774045307,0.88952812,707.85,707.06,1.06017598]
[1735774045506,0.88952812,707.84,707.06,1.06017598]
[1735774045708,0.88952812,707.83,707.06,1.06017598]
[1735774046008,1.4759,707.96,707.05,1.06017598]